Department family,Entity,Date,Expense Type,Expense area,Supplier,Transaction number,AP Amount (�),VAT registration number,Purchase invoice number
Department of Health,NHS Southport And Formby CCG,31/03/2015,Cont Care-Funded Nursing Care Allow,FUNDED NURSING CARE,SEFTON METROPOLITAN BOROUGH COUNCIL,7062337,255630.78,,3.01737E+19
Department of Health,NHS Southport And Formby CCG,31/03/2015,Clinical&Medical-Othe Public Sector,REABLEMENT,SEFTON METROPOLITAN BOROUGH COUNCIL,7062829,120000,,3.01766E+19
Department of Health,NHS Southport And Formby CCG,31/03/2015,Hcare Srv Rec Fdtn Trust-Over/ Under Performance,ACUTE COMMISSIONING,AINTREE UNIVERSITY HOSPITALS NHS FOUNDATION TRUST,7121942,30479,,8410012899
Department of Health,NHS Southport And Formby CCG,31/03/2015,Clinical&Medical-Commercial Sector,CLINICAL ASSESSMENT AND TREATMENT CENTRES,VIRGIN CARE LIVERPOOL LLP,7122843,45038.78,,804Z177
Department of Health,NHS Southport And Formby CCG,31/03/2015,Clinical&Medical-Voluntary Sector,HOSPICES,QUEENSCOURT HOSPICE,7139549,45738.5,,2117
Department of Health,NHS Southport And Formby CCG,31/03/2015,Clinical&Medical-Voluntary Sector,OUT OF HOURS,GO TO DOC LTD,7139583,82654.77,,8307
Department of Health,NHS Southport And Formby CCG,31/03/2015,Clinical&Medical-Othe Public Sector,REABLEMENT,SEFTON METROPOLITAN BOROUGH COUNCIL,7139625,395560,,3.01735E+19
Department of Health,NHS Southport And Formby CCG,31/03/2015,Hcare Srv Rec Fdtn Trust-Over/ Under Performance,ACUTE COMMISSIONING,AINTREE UNIVERSITY HOSPITALS NHS FOUNDATION TRUST,7179544,105698,,8410011618
Department of Health,NHS Southport And Formby CCG,31/03/2015,Hlthcre-Foundation Trsts,ACUTE COMMISSIONING,AINTREE UNIVERSITY HOSPITALS NHS FOUNDATION TRUST,7179554,58000,,8410012407
Department of Health,NHS Southport And Formby CCG,31/03/2015,Cont Care-Learning Disab(<65),LEARNING DIFFICULTIES,SEFTON METROPOLITAN BOROUGH COUNCIL,7179658,233409.12,,3.01737E+19
Department of Health,NHS Southport And Formby CCG,31/03/2015,Hcare Srv Rec NHS Trust-Contract Baseline,AMBULANCE SERVICES,NORTH WEST AMBULANCE SERVICE NHS TRUST,7179663,299756,654435138,4110015862
Department of Health,NHS Southport And Formby CCG,31/03/2015,Hcare Srv Rec NHS Trust-Contract Baseline,AMBULANCE SERVICES,NORTH WEST AMBULANCE SERVICE NHS TRUST,7179684,62881,654435138,4110015919
Department of Health,NHS Southport And Formby CCG,31/03/2015,Hcare Srv Rec NHS Trust-Contract Baseline,COMMISSIONING - NON ACUTE,LIVERPOOL COMMUNITY HEALTH NHS TRUST,7179715,244735,,9610002846
Department of Health,NHS Southport And Formby CCG,31/03/2015,Hcare Srv Rec NHS Trust-CQUIN,COMMISSIONING - NON ACUTE,LIVERPOOL COMMUNITY HEALTH NHS TRUST,7179715,5757,,9610002846
Department of Health,NHS Southport And Formby CCG,31/03/2015,Hcare Srv Rec Fdtn Trust-CQUIN,COMMISSIONING - NON ACUTE,SOUTH STAFFORDSHIRE AND SHROPSHIRE HEALTHCARE NHS FOUNDATION TRUST,7179750,2491,,I0059299
Department of Health,NHS Southport And Formby CCG,31/03/2015,Hcare Srv Rec Fdtn Trust-Contract Baseline,COMMISSIONING - NON ACUTE,SOUTH STAFFORDSHIRE AND SHROPSHIRE HEALTHCARE NHS FOUNDATION TRUST,7179750,99620.23,,I0059299
Department of Health,NHS Southport And Formby CCG,31/03/2015,Clinical&Medical-Othe Public Sector,REABLEMENT,SEFTON METROPOLITAN BOROUGH COUNCIL,7179765,96220,,3.01726E+18
Department of Health,NHS Southport And Formby CCG,31/03/2015,Clinical&Medical-Independent Sector,CLINICAL ASSESSMENT AND TREATMENT CENTRES,RENACRES HOSPITAL,7179779,88474.91,,SF914REC
Department of Health,NHS Southport And Formby CCG,31/03/2015,Hcare Srv Rec Fdtn Trust-CQUIN,ACUTE COMMISSIONING,LIVERPOOL HEART AND CHEST HOSPITAL NHS TRUST,7179802,2441,,12761415
Department of Health,NHS Southport And Formby CCG,31/03/2015,Hcare Srv Rec Fdtn Trust-Contract Baseline,ACUTE COMMISSIONING,LIVERPOOL HEART AND CHEST HOSPITAL NHS TRUST,7179802,112822,,12761415
Department of Health,NHS Southport And Formby CCG,31/03/2015,Hcare Srv Rec Fdtn Trust-Over/ Under Performance,ACUTE COMMISSIONING,LIVERPOOL HEART AND CHEST HOSPITAL NHS TRUST,7179802,143147.88,,12761415
Department of Health,NHS Southport And Formby CCG,31/03/2015,Charges from CSU,COMMISSIONING,NHS CHESHIRE AND MERSEYSIDE CSU,7194521,64753,65444204,7310304640
Department of Health,NHS Southport And Formby CCG,31/03/2015,Charges from CSU,COMMISSIONING SCHEMES,NHS CHESHIRE AND MERSEYSIDE CSU,7194521,34959,65444204,7310304640
Department of Health,NHS Southport And Formby CCG,31/03/2015,Hcare Srv Rec NHS Trust-Contract Baseline,ACUTE COMMISSIONING,ST HELENS AND KNOWSLEY HOSPITALS NHS TRUST,7194552,119123,,16754205
Department of Health,NHS Southport And Formby CCG,31/03/2015,Hcare Srv Rec NHS Trust,MENTAL HEALTH SERVICES - WINTER RESILIENCE,MERSEY CARE NHS TRUST,7194632,74000,654412841,I0032235
Department of Health,NHS Southport And Formby CCG,31/03/2015,Hcare Srv Rec NHS Trust,WINTER PRESSURES,MERSEY CARE NHS TRUST,7194632,50000,654412841,I0032235
Department of Health,NHS Southport And Formby CCG,31/03/2015,Hcare Srv Rec NHS Trust,WINTER PRESSURES,SOUTHPORT AND ORMSKIRK HOSPITAL NHS TRUST,7216884,103000,,7508444
Department of Health,NHS Southport And Formby CCG,31/03/2015,Hcare Srv Rec NHS Trust,WINTER PRESSURES,SOUTHPORT AND ORMSKIRK HOSPITAL NHS TRUST,7216887,331750,,7508445
Department of Health,NHS Southport And Formby CCG,31/03/2015,Rent,COMMUNITY SERVICES,COMMUNITY HEALTH PARTNERSHIPS LTD,7216926,105166.96,,50377047
Department of Health,NHS Southport And Formby CCG,31/03/2015,Clinical&Medical-Othe Public Sector,COMMISSIONING SCHEMES,NHS HALTON CCG,7242318,29095,,7012200213
Department of Health,NHS Southport And Formby CCG,31/03/2015,Hcare Srv Rec NHS Trust-Over/ Under Performance,ACUTE COMMISSIONING,ROYAL LIVERPOOL AND BROADGREEN UNIVERSITY HOSPITALS NHS TRUST,7263175,170171,654966000,8610028197
Department of Health,NHS Southport And Formby CCG,31/03/2015,Hcare Srv Rec NHS Trust-Over/ Under Performance,ACUTE COMMISSIONING,SOUTHPORT AND ORMSKIRK HOSPITAL NHS TRUST,7291020,570804,,7505591
Department of Health,NHS Southport And Formby CCG,31/03/2015,Hcare Srv Rec Fdtn Trust-Over/ Under Performance,ACUTE COMMISSIONING,LANCASHIRE TEACHING HOSPITALS NHS FOUNDATION TRUST,7291219,50331,,15258771
Department of Health,NHS Southport And Formby CCG,31/03/2015,Clinical&Medical-Voluntary Sector,OUT OF HOURS,GO TO DOC LTD,7312709,82654.77,,8741
Department of Health,NHS Southport And Formby CCG,31/03/2015,Hcare Srv Rec NHS Trust-Contract Baseline,ACUTE COMMISSIONING,ST HELENS AND KNOWSLEY HOSPITALS NHS TRUST,7352213,44947,,16754153
Department of Health,NHS Southport And Formby CCG,31/03/2015,Cont Care-Funded Nursing Care Allow,FUNDED NURSING CARE,SEFTON METROPOLITAN BOROUGH COUNCIL,7352673,289981.66,,3.01705E+19
Department of Health,NHS Southport And Formby CCG,31/03/2015,Hcare Srv Rec Fdtn Trust-CQUIN,ACUTE COMMISSIONING,LIVERPOOL WOMENS HOSPITAL NHS FOUNDATION TRUST,7376419,2346.83,,9410006260
Department of Health,NHS Southport And Formby CCG,31/03/2015,Hcare Srv Rec Fdtn Trust-Contract Baseline,ACUTE COMMISSIONING,LIVERPOOL WOMENS HOSPITAL NHS FOUNDATION TRUST,7376419,93865,,9410006260
Department of Health,NHS Southport And Formby CCG,31/03/2015,Clinical&Medical-Independent Sector,CLINICAL ASSESSMENT AND TREATMENT CENTRES,RENACRES HOSPITAL,7376650,200736.83,,SF0315
Department of Health,NHS Southport And Formby CCG,31/03/2015,Hcare Srv Rec NHS Trust-Contract Baseline,COMMISSIONING - NON ACUTE,LIVERPOOL COMMUNITY HEALTH NHS TRUST,7376667,243147,,9610003148
Department of Health,NHS Southport And Formby CCG,31/03/2015,Hcare Srv Rec NHS Trust-CQUIN,COMMISSIONING - NON ACUTE,LIVERPOOL COMMUNITY HEALTH NHS TRUST,7376667,5759,,9610003148
Department of Health,NHS Southport And Formby CCG,31/03/2015,Hcare Srv Rec Fdtn Trust-Over/ Under Performance,ACUTE COMMISSIONING,AINTREE UNIVERSITY HOSPITALS NHS FOUNDATION TRUST,7376758,516823,,8410015144
Department of Health,NHS Southport And Formby CCG,31/03/2015,Hcare Srv Rec NHS Trust-CQUIN,ACUTE COMMISSIONING,ROYAL LIVERPOOL AND BROADGREEN UNIVERSITY HOSPITALS NHS TRUST,7376833,8971,654966000,8610029962
Department of Health,NHS Southport And Formby CCG,31/03/2015,Hcare Srv Rec NHS Trust-Contract Baseline,ACUTE COMMISSIONING,ROYAL LIVERPOOL AND BROADGREEN UNIVERSITY HOSPITALS NHS TRUST,7376833,391622,654966000,8610029962
Department of Health,NHS Southport And Formby CCG,31/03/2015,Hcare Srv Rec Fdtn Trust-CQUIN,ACUTE COMMISSIONING,LANCASHIRE TEACHING HOSPITALS NHS FOUNDATION TRUST,7377109,709,,15259192
Department of Health,NHS Southport And Formby CCG,31/03/2015,Hcare Srv Rec Fdtn Trust-Contract Baseline,ACUTE COMMISSIONING,LANCASHIRE TEACHING HOSPITALS NHS FOUNDATION TRUST,7377109,27650.18,,15259192
Department of Health,NHS Southport And Formby CCG,31/03/2015,Hcare Srv Rec NHS Trust,ACUTE COMMISSIONING,SOUTHPORT AND ORMSKIRK HOSPITAL NHS TRUST,7377124,74083,,7508814
Department of Health,NHS Southport And Formby CCG,31/03/2015,Hcare Srv Rec NHS Trust-CQUIN,ACUTE COMMISSIONING,SOUTHPORT AND ORMSKIRK HOSPITAL NHS TRUST,7377124,123237,,7508814
Department of Health,NHS Southport And Formby CCG,31/03/2015,Hcare Srv Rec NHS Trust-Contract Baseline,ACUTE COMMISSIONING,SOUTHPORT AND ORMSKIRK HOSPITAL NHS TRUST,7377124,4985734,,7508814
Department of Health,NHS Southport And Formby CCG,31/03/2015,Hcare Srv Rec NHS Trust-CQUIN,COMMISSIONING - NON ACUTE,SOUTHPORT AND ORMSKIRK HOSPITAL NHS TRUST,7377124,21667,,7508814
Department of Health,NHS Southport And Formby CCG,31/03/2015,Hcare Srv Rec NHS Trust-Contract Baseline,COMMISSIONING - NON ACUTE,SOUTHPORT AND ORMSKIRK HOSPITAL NHS TRUST,7377124,866683,,7508814
Department of Health,NHS Southport And Formby CCG,31/03/2015,Clinical&Medical-Independent Sector,CLINICAL ASSESSMENT AND TREATMENT CENTRES,ISIGHT LTD,7390269,49137.41,,L4652318031549137
